[Event "GrandPrix_30.05"]
[Site "Chess.com"]
[Date "2020.05.30"]
[Round "8"]
[White "BMOchsner"]
[Black "Karateloru"]
[Result "0-1"]
[WhiteElo "2251"]
[BlackElo "2221"]
[TimeControl "600+2"]
[EndTime "11:51:11 PDT"]
[Termination "Karateloru won on time"]

1. e4 {[%clk 0:10:01.9]} 1... c5 {[%clk 0:10:00.3]} 2. Nf3 {[%clk 0:10:03]} 2...
e6 {[%clk 0:10:01.5]} 3. c3 {[%clk 0:10:03.6]} 3... Nf6 {[%clk 0:09:59.2]} 4. e5
{[%clk 0:10:04.6]} 4... Nd5 {[%clk 0:10:00.1]} 5. Bc4 {[%clk 0:10:06.2]} 5...
Nb6 {[%clk 0:09:59.5]} 6. Bb3 {[%clk 0:10:05.1]} 6... Nc6 {[%clk 0:09:57.9]} 7.
O-O {[%clk 0:09:45.8]} 7... c4 {[%clk 0:09:56.9]} 8. Bc2 {[%clk 0:09:46.2]} 8...
d6 {[%clk 0:09:58.1]} 9. exd6 {[%clk 0:09:43.2]} 9... Bxd6 {[%clk 0:10:00]} 10.
Qe2 {[%clk 0:09:32.6]} 10... e5 {[%clk 0:09:53]} 11. b3 {[%clk 0:08:18.7]} 11...
cxb3 {[%clk 0:09:44.3]} 12. axb3 {[%clk 0:08:19]} 12... O-O {[%clk 0:09:44.7]}
13. b4 {[%clk 0:08:03]} 13... a6 {[%clk 0:09:18.3]} 14. h3 {[%clk 0:07:48.8]}
14... Be6 {[%clk 0:09:10.9]} 15. d3 {[%clk 0:07:34.1]} 15... h6 {[%clk
0:09:07.4]} 16. Nbd2 {[%clk 0:07:10.4]} 16... Rc8 {[%clk 0:09:06.3]} 17. Ne4
{[%clk 0:06:35.7]} 17... Re8 {[%clk 0:08:46.6]} 18. Be3 {[%clk 0:04:12.2]} 18...
Nd5 {[%clk 0:08:44.9]} 19. Nxd6 {[%clk 0:04:12.1]} 19... Qxd6 {[%clk 0:08:40.8]}
20. Bc5 {[%clk 0:04:12.5]} 20... Qc7 {[%clk 0:08:37.2]} 21. d4 {[%clk
0:01:19.4]} 21... b6 {[%clk 0:08:11.7]} 22. Qd3 {[%clk 0:01:04.5]} 22... f5
{[%clk 0:08:11.3]} 23. Bxb6 {[%clk 0:00:51.4]} 23... Nxb6 {[%clk 0:08:11.6]} 24.
Rxa6 {[%clk 0:00:28.9]} 24... e4 {[%clk 0:08:10.9]} 25. Qd1 {[%clk 0:00:26.7]}
25... Bc4 {[%clk 0:08:03.9]} 26. Bb3 {[%clk 0:00:22.9]} 26... exf3 {[%clk
0:07:57.6]} 27. Rxb6 {[%clk 0:00:23.4]} 27... Qxb6 {[%clk 0:07:58.1]} 28. Bxc4+
{[%clk 0:00:24.5]} 28... Kh8 {[%clk 0:07:58.7]} 29. Bd3 {[%clk 0:00:24.7]} 29...
fxg2 {[%clk 0:07:57.5]} 30. Kxg2 {[%clk 0:00:24.9]} 30... Ne7 {[%clk 0:07:57.9]}
31. Qd2 {[%clk 0:00:17.6]} 31... Qc6+ {[%clk 0:07:57.6]} 0-1

[Event "GrandPrix_30.05"]
[Site "Chess.com"]
[Date "2020.05.30"]
[Round "8"]
[White "Matibar"]
[Black "mishanick"]
[Result "0-1"]
[WhiteElo "2590"]
[BlackElo "2894"]
[TimeControl "600+2"]
[EndTime "11:51:40 PDT"]
[Termination "mishanick won by resignation"]

1. e4 {[%clk 0:10:01.9]} 1... c5 {[%clk 0:09:58.5]} 2. Nf3 {[%clk 0:10:02.9]}
2... d6 {[%clk 0:10:00]} 3. Bb5+ {[%clk 0:10:02.8]} 3... Nd7 {[%clk 0:10:00.7]}
4. Ba4 {[%clk 0:10:02.8]} 4... Nf6 {[%clk 0:09:57.7]} 5. O-O {[%clk 0:10:03.3]}
5... a6 {[%clk 0:09:57.3]} 6. c4 {[%clk 0:10:03.1]} 6... e5 {[%clk 0:09:55]} 7.
Nc3 {[%clk 0:09:59.9]} 7... g6 {[%clk 0:09:50.5]} 8. a3 {[%clk 0:09:55.9]} 8...
Bg7 {[%clk 0:09:50.6]} 9. b4 {[%clk 0:09:56.9]} 9... O-O {[%clk 0:09:49.1]} 10.
d3 {[%clk 0:09:55.7]} 10... b6 {[%clk 0:09:47]} 11. Bc6 {[%clk 0:09:31.7]} 11...
Rb8 {[%clk 0:09:47.3]} 12. Rb1 {[%clk 0:09:25.4]} 12... Qc7 {[%clk 0:09:43.8]}
13. Nd5 {[%clk 0:08:15.2]} 13... Nxd5 {[%clk 0:09:42.4]} 14. exd5 {[%clk
0:08:17.1]} 14... Nf6 {[%clk 0:09:12.8]} 15. bxc5 {[%clk 0:08:05.7]} 15... bxc5
{[%clk 0:09:09.3]} 16. Rxb8 {[%clk 0:08:06.2]} 16... Qxb8 {[%clk 0:09:11.2]} 17.
Bg5 {[%clk 0:08:07.6]} 17... Qb2 {[%clk 0:08:48]} 18. Bc1 {[%clk 0:07:18.9]}
18... Qb6 {[%clk 0:08:43.7]} 19. Qa4 {[%clk 0:07:19.6]} 19... Bf5 {[%clk
0:08:41.5]} 20. Qc2 {[%clk 0:07:04.1]} 20... Rb8 {[%clk 0:08:39.2]} 21. Nd2
{[%clk 0:07:05.1]} 21... h5 {[%clk 0:08:32.6]} 22. Ne4 {[%clk 0:06:50.8]} 22...
Bxe4 {[%clk 0:08:08.5]} 23. dxe4 {[%clk 0:06:51.4]} 23... Qb3 {[%clk 0:08:09.7]}
24. Qe2 {[%clk 0:06:28]} 24... Kh7 {[%clk 0:08:01.1]} 25. g3 {[%clk 0:06:05.4]}
25... Qc3 {[%clk 0:07:51.8]} 26. Ba4 {[%clk 0:06:04.8]} 26... Bh6 {[%clk
0:07:46.7]} 27. Qc2 {[%clk 0:04:48.8]} 27... Qd4 {[%clk 0:07:23.6]} 28. Rd1
{[%clk 0:04:17]} 28... Qxe4 {[%clk 0:07:19.5]} 29. Qxe4 {[%clk 0:04:18]} 29...
Nxe4 {[%clk 0:07:21.3]} 30. Bxh6 {[%clk 0:04:18]} 30... Nc3 {[%clk 0:07:02.3]}
31. Rd3 {[%clk 0:04:06.5]} 31... Nxa4 {[%clk 0:06:51.9]} 32. Bg5 {[%clk
0:04:07.5]} 32... f5 {[%clk 0:06:46.1]} 33. Be7 {[%clk 0:04:02.2]} 33... Rb6
{[%clk 0:06:46.9]} 34. h3 {[%clk 0:03:05.3]} 34... Kg7 {[%clk 0:06:46.9]} 35. g4
{[%clk 0:03:06.4]} 35... Kf7 {[%clk 0:06:47.4]} 36. Bd8 {[%clk 0:03:05.2]} 36...
Rb7 {[%clk 0:06:45.5]} 37. gxf5 {[%clk 0:03:06.1]} 37... gxf5 {[%clk 0:06:47.4]}
38. Rg3 {[%clk 0:03:06.2]} 38... Rd7 {[%clk 0:06:24]} 39. Ba5 {[%clk 0:02:58]}
39... Nb2 {[%clk 0:06:21]} 40. Rc3 {[%clk 0:02:57.4]} 40... Rb7 {[%clk
0:06:19.2]} 41. Kf1 {[%clk 0:02:55.4]} 41... f4 {[%clk 0:06:12.1]} 42. f3 {[%clk
0:02:39.6]} 42... Kg6 {[%clk 0:06:09.3]} 43. Ke2 {[%clk 0:02:39.8]} 43... Kf5
{[%clk 0:06:10.6]} 44. Kd2 {[%clk 0:02:32.6]} 44... Na4 {[%clk 0:06:09]} 45. Rd3
{[%clk 0:02:29.5]} 45... e4 {[%clk 0:06:06.5]} 46. fxe4+ {[%clk 0:02:30.9]}
46... Kxe4 {[%clk 0:06:08.4]} 0-1

[Event "GrandPrix_30.05"]
[Site "Chess.com"]
[Date "2020.05.30"]
[Round "8"]
[White "BogdanBelyakov89"]
[Black "Lion_DL"]
[Result "1/2-1/2"]
[WhiteElo "2246"]
[BlackElo "2178"]
[TimeControl "600+2"]
[EndTime "11:51:43 PDT"]
[Termination "Game drawn by agreement"]

1. e4 {[%clk 0:10:01.9]} 1... c5 {[%clk 0:09:59.9]} 2. c3 {[%clk 0:10:02.8]}
2... d6 {[%clk 0:09:59.3]} 3. d4 {[%clk 0:10:03.2]} 3... Nf6 {[%clk 0:10:00]} 4.
f3 {[%clk 0:10:04]} 4... e6 {[%clk 0:09:55.1]} 5. Bd3 {[%clk 0:10:03.6]} 5...
Nc6 {[%clk 0:09:49.8]} 6. Ne2 {[%clk 0:10:04]} 6... Qb6 {[%clk 0:09:32.8]} 7.
Na3 {[%clk 0:09:55.9]} 7... cxd4 {[%clk 0:09:27.1]} 8. Nc4 {[%clk 0:09:46.2]}
8... Qc7 {[%clk 0:08:44.9]} 9. Nxd4 {[%clk 0:09:36.2]} 9... Nxd4 {[%clk
0:08:38]} 10. cxd4 {[%clk 0:09:36.6]} 10... d5 {[%clk 0:08:39.3]} 11. exd5
{[%clk 0:09:23.2]} 11... Nxd5 {[%clk 0:08:20]} 12. Ne5 {[%clk 0:09:13.9]} 12...
Bb4+ {[%clk 0:07:54.9]} 13. Bd2 {[%clk 0:09:13.9]} 13... O-O {[%clk 0:07:55.7]}
14. O-O {[%clk 0:09:08.4]} 14... Qb6 {[%clk 0:07:28.2]} 15. Kh1 {[%clk 0:08:14]}
15... Qxd4 {[%clk 0:07:24.4]} 16. f4 {[%clk 0:08:10.6]} 16... f5 {[%clk
0:05:36.3]} 17. Bxb4 {[%clk 0:08:01.1]} 17... Qxb4 {[%clk 0:05:35]} 18. Qc1
{[%clk 0:07:43.7]} 18... Qd6 {[%clk 0:05:16.2]} 19. Bc4 {[%clk 0:07:37.9]} 19...
Bd7 {[%clk 0:05:15.6]} 20. Bxd5 {[%clk 0:07:26.5]} 20... exd5 {[%clk 0:05:10]}
21. Qe3 {[%clk 0:07:24.2]} 21... d4 {[%clk 0:04:58.8]} 22. Rfd1 {[%clk
0:07:17.5]} 22... dxe3 {[%clk 0:04:31.8]} 23. Rxd6 {[%clk 0:07:15.6]} 23... Bc6
{[%clk 0:04:33.1]} 24. Nxc6 {[%clk 0:06:50]} 24... bxc6 {[%clk 0:04:35]} 25.
Rxc6 {[%clk 0:06:51.2]} 25... Rfe8 {[%clk 0:04:30.6]} 26. Re1 {[%clk 0:06:50.2]}
26... Rad8 {[%clk 0:04:25.1]} 27. Rc2 {[%clk 0:06:46.8]} 27... Re4 {[%clk
0:04:20.2]} 28. Rce2 {[%clk 0:06:27.9]} 28... Rd2 {[%clk 0:04:02.4]} 29. g3
{[%clk 0:06:24.2]} 29... Rc4 {[%clk 0:03:18.6]} 30. Kg2 {[%clk 0:05:34.6]} 30...
Rcc2 {[%clk 0:03:17.8]} 31. Kf3 {[%clk 0:05:34.9]} 31... Rxb2 {[%clk 0:03:18.8]}
32. Kxe3 {[%clk 0:05:34.9]} 32... Rxe2+ {[%clk 0:03:12.3]} 33. Rxe2 {[%clk
0:05:36.8]} 33... Rb4 {[%clk 0:03:11.8]} 1/2-1/2

[Event "GrandPrix_30.05"]
[Site "Chess.com"]
[Date "2020.05.30"]
[Round "8"]
[White "klimkoj"]
[Black "tianachess"]
[Result "0-1"]
[WhiteElo "2092"]
[BlackElo "2020"]
[TimeControl "600+2"]
[EndTime "11:51:58 PDT"]
[Termination "tianachess won by resignation"]

1. e4 {[%clk 0:10:01.9]} 1... Nf6 {[%clk 0:09:59]} 2. e5 {[%clk 0:10:02.3]} 2...
Nd5 {[%clk 0:09:59.5]} 3. c4 {[%clk 0:10:03.6]} 3... Nb6 {[%clk 0:09:59.5]} 4.
c5 {[%clk 0:10:04.6]} 4... Nd5 {[%clk 0:09:54.7]} 5. Nc3 {[%clk 0:10:05.8]} 5...
e6 {[%clk 0:09:41.2]} 6. Nxd5 {[%clk 0:09:56.6]} 6... exd5 {[%clk 0:09:40.2]} 7.
d4 {[%clk 0:09:57.6]} 7... d6 {[%clk 0:09:37]} 8. cxd6 {[%clk 0:09:57.6]} 8...
cxd6 {[%clk 0:09:36.8]} 9. Nf3 {[%clk 0:09:58.8]} 9... dxe5 {[%clk 0:09:33.9]}
10. Nxe5 {[%clk 0:09:59.7]} 10... Bb4+ {[%clk 0:09:32.3]} 11. Bd2 {[%clk
0:10:00.2]} 11... Bxd2+ {[%clk 0:09:31.7]} 12. Qxd2 {[%clk 0:10:00.9]} 12... O-O
{[%clk 0:09:29.1]} 13. Be2 {[%clk 0:10:01.6]} 13... f6 {[%clk 0:09:00.6]} 14.
Nf3 {[%clk 0:09:58.4]} 14... Nc6 {[%clk 0:08:34.9]} 15. O-O {[%clk 0:09:57.7]}
15... Bf5 {[%clk 0:08:22.8]} 16. Rac1 {[%clk 0:09:45.2]} 16... Qb6 {[%clk
0:08:14.9]} 17. Rc5 {[%clk 0:09:41.5]} 17... Be4 {[%clk 0:08:09.9]} 18. Rfc1
{[%clk 0:09:41.1]} 18... Rad8 {[%clk 0:07:41.9]} 19. a3 {[%clk 0:09:35.6]} 19...
a6 {[%clk 0:06:35.2]} 20. b4 {[%clk 0:09:32.6]} 20... Ne7 {[%clk 0:05:31.9]} 21.
Qf4 {[%clk 0:09:14.1]} 21... Nf5 {[%clk 0:05:06.1]} 22. h3 {[%clk 0:08:32.2]}
22... Qd6 {[%clk 0:04:33.8]} 23. Qxd6 {[%clk 0:08:26.8]} 23... Rxd6 {[%clk
0:04:08]} 24. g4 {[%clk 0:08:24.7]} 24... Bxf3 {[%clk 0:04:03.4]} 25. Bxf3
{[%clk 0:08:19]} 25... Nxd4 {[%clk 0:04:03.7]} 26. Bxd5+ {[%clk 0:08:19.2]}
26... Rxd5 {[%clk 0:04:03.2]} 27. Rxd5 {[%clk 0:08:05.7]} 27... Ne2+ {[%clk
0:04:03.3]} 28. Kf1 {[%clk 0:08:05.7]} 28... Nxc1 {[%clk 0:04:04.2]} 29. Rd7
{[%clk 0:07:59.1]} 29... Rb8 {[%clk 0:03:20.3]} 30. Ke1 {[%clk 0:07:26.2]} 30...
a5 {[%clk 0:03:14.1]} 31. Kd1 {[%clk 0:07:13]} 31... Nb3 {[%clk 0:03:08.5]} 32.
Kc2 {[%clk 0:07:09.8]} 32... a4 {[%clk 0:03:08.5]} 33. b5 {[%clk 0:06:56.4]}
33... b6 {[%clk 0:03:02.1]} 34. Kc3 {[%clk 0:06:55.2]} 34... Nc5 {[%clk
0:02:50.6]} 35. Rc7 {[%clk 0:06:50.7]} 35... Ne4+ {[%clk 0:02:03.8]} 36. Kb4
{[%clk 0:06:50.6]} 36... Nxf2 {[%clk 0:01:58.7]} 37. Kxa4 {[%clk 0:06:51.2]}
37... Nxh3 {[%clk 0:01:51.7]} 38. Kb4 {[%clk 0:06:51.7]} 38... Nf2 {[%clk
0:01:50.7]} 39. a4 {[%clk 0:06:46.2]} 39... Nxg4 {[%clk 0:01:32.7]} 40. Rc6
{[%clk 0:06:45.4]} 40... Ne5 {[%clk 0:01:28.7]} 41. Rxb6 {[%clk 0:06:46.2]}
41... Rxb6 {[%clk 0:01:28.4]} 42. a5 {[%clk 0:06:47.3]} 42... Nc6+ {[%clk
0:01:20.4]} 43. Kc5 {[%clk 0:06:46.4]} 43... Rxb5+ {[%clk 0:01:20]} 0-1

[Event "GrandPrix_30.05"]
[Site "Chess.com"]
[Date "2020.05.30"]
[Round "8"]
[White "Flawless_Fighter"]
[Black "DanielDardha2005"]
[Result "1-0"]
[WhiteElo "2235"]
[BlackElo "2278"]
[TimeControl "600+2"]
[EndTime "11:52:03 PDT"]
[Termination "Flawless_Fighter won by resignation"]

1. e4 {[%clk 0:10:01.9]} 1... c5 {[%clk 0:10:00.8]} 2. Nf3 {[%clk 0:10:01.2]}
2... Nc6 {[%clk 0:10:02]} 3. Bb5 {[%clk 0:10:01.7]} 3... Nf6 {[%clk 0:10:02]} 4.
Nc3 {[%clk 0:10:00.3]} 4... g6 {[%clk 0:10:02.2]} 5. Bxc6 {[%clk 0:09:49.3]}
5... dxc6 {[%clk 0:10:02.8]} 6. d3 {[%clk 0:09:41.9]} 6... Bg7 {[%clk
0:09:58.4]} 7. h3 {[%clk 0:09:37.8]} 7... O-O {[%clk 0:09:57.3]} 8. Be3 {[%clk
0:09:20.8]} 8... b6 {[%clk 0:09:52.5]} 9. Qd2 {[%clk 0:09:20]} 9... Re8 {[%clk
0:09:46.4]} 10. O-O {[%clk 0:08:56.9]} 10... e5 {[%clk 0:09:46]} 11. Nh2 {[%clk
0:08:52]} 11... Nh5 {[%clk 0:09:45.9]} 12. Ne2 {[%clk 0:08:30.2]} 12... f5
{[%clk 0:09:35.6]} 13. exf5 {[%clk 0:08:26]} 13... gxf5 {[%clk 0:09:35.9]} 14.
Bg5 {[%clk 0:08:25.4]} 14... Qd6 {[%clk 0:09:31]} 15. Rae1 {[%clk 0:08:19.8]}
15... Qg6 {[%clk 0:08:46.7]} 16. f4 {[%clk 0:07:39.8]} 16... e4 {[%clk
0:07:59.8]} 17. dxe4 {[%clk 0:07:36.6]} 17... Rxe4 {[%clk 0:08:00.6]} 18. Nf3
{[%clk 0:07:03.6]} 18... Ba6 {[%clk 0:07:58]} 19. g4 {[%clk 0:04:43.2]} 19...
fxg4 {[%clk 0:06:15.3]} 20. hxg4 {[%clk 0:04:43.5]} 20... Rxe2 {[%clk
0:06:16.4]} 21. Rxe2 {[%clk 0:04:39.1]} 21... Ng3 {[%clk 0:06:17.2]} 22. Re7
{[%clk 0:03:49]} 22... Nxf1 {[%clk 0:06:09.3]} 23. Qd7 {[%clk 0:03:48.9]} 23...
Bd4+ {[%clk 0:03:45.8]} 24. Nxd4 {[%clk 0:03:41.9]} 24... c4 {[%clk 0:03:47]}
25. Nf5 {[%clk 0:03:02.3]} 1-0

[Event "GrandPrix_30.05"]
[Site "Chess.com"]
[Date "2020.05.30"]
[Round "8"]
[White "ZverevLev"]
[Black "bsnsun"]
[Result "0-1"]
[WhiteElo "2059"]
[BlackElo "1940"]
[TimeControl "600+2"]
[EndTime "11:52:12 PDT"]
[Termination "bsnsun won by resignation"]

1. e4 {[%clk 0:09:49]} 1... c5 {[%clk 0:10:00.7]} 2. Nf3 {[%clk 0:09:47.6]} 2...
d6 {[%clk 0:10:01.8]} 3. d4 {[%clk 0:09:47.7]} 3... cxd4 {[%clk 0:10:03]} 4.
Nxd4 {[%clk 0:09:49.1]} 4... Nf6 {[%clk 0:10:04.2]} 5. Nc3 {[%clk 0:09:49.5]}
5... a6 {[%clk 0:10:05.5]} 6. Bg5 {[%clk 0:09:49]} 6... Nbd7 {[%clk 0:10:05.6]}
7. f4 {[%clk 0:09:48.7]} 7... h6 {[%clk 0:10:03.7]} 8. Bxf6 {[%clk 0:09:31.6]}
8... Nxf6 {[%clk 0:10:04]} 9. f5 {[%clk 0:09:31.7]} 9... Qb6 {[%clk 0:09:57.6]}
10. Qd2 {[%clk 0:09:28.2]} 10... g5 {[%clk 0:09:22.7]} 11. O-O-O {[%clk
0:09:24.7]} 11... Bg7 {[%clk 0:09:22.6]} 12. Be2 {[%clk 0:09:15.8]} 12... Qc5
{[%clk 0:09:00.1]} 13. Nb3 {[%clk 0:09:11.8]} 13... Qe5 {[%clk 0:09:00.7]} 14.
Rde1 {[%clk 0:09:06.7]} 14... b5 {[%clk 0:08:52.6]} 15. Bd3 {[%clk 0:08:59.1]}
15... Bd7 {[%clk 0:08:43.7]} 16. Nd5 {[%clk 0:08:57.5]} 16... Nxd5 {[%clk
0:08:37.2]} 17. exd5 {[%clk 0:08:59.4]} 17... Qxb2+ {[%clk 0:08:37.9]} 18. Kd1
{[%clk 0:08:59.3]} 18... Bc3 {[%clk 0:08:27.4]} 19. Qe3 {[%clk 0:08:57.9]} 19...
Bxe1 {[%clk 0:08:27.7]} 20. Rxe1 {[%clk 0:08:59.8]} 20... Qf6 {[%clk 0:08:10.2]}
21. Nd2 {[%clk 0:08:58.6]} 21... Qa1+ {[%clk 0:08:04.8]} 22. Ke2 {[%clk
0:08:56.1]} 22... Qe5 {[%clk 0:08:05.8]} 23. Kf2 {[%clk 0:08:56.8]} 23... Qxe3+
{[%clk 0:07:57.2]} 24. Rxe3 {[%clk 0:08:58.7]} 24... f6 {[%clk 0:07:55]} 25. g4
{[%clk 0:08:55.6]} 25... h5 {[%clk 0:07:53.6]} 26. Ne4 {[%clk 0:08:55.7]} 26...
Kf7 {[%clk 0:07:53.9]} 27. h3 {[%clk 0:08:55.7]} 27... hxg4 {[%clk 0:07:54.2]}
28. hxg4 {[%clk 0:08:57.6]} 28... Rh2+ {[%clk 0:07:51.4]} 29. Kg3 {[%clk
0:08:57.9]} 29... Rah8 {[%clk 0:07:52]} 30. Nf2 {[%clk 0:08:58.1]} 30... a5
{[%clk 0:07:36.7]} 31. c3 {[%clk 0:08:55.1]} 31... R2h7 {[%clk 0:07:35]} 32. a3
{[%clk 0:08:51.7]} 32... Rc8 {[%clk 0:07:35.1]} 33. Bf1 {[%clk 0:08:46.2]} 33...
Rhh8 {[%clk 0:07:32.6]} 34. Ne4 {[%clk 0:08:41.7]} 34... Rc7 {[%clk 0:07:17.2]}
35. Re1 {[%clk 0:08:41]} 35... Rhc8 {[%clk 0:05:59.5]} 36. Rb1 {[%clk
0:08:39.8]} 36... Rxc3+ {[%clk 0:05:52.9]} 37. Nxc3 {[%clk 0:08:39.9]} 37...
Rxc3+ {[%clk 0:05:54.8]} 38. Kf2 {[%clk 0:08:40.2]} 38... Rxa3 {[%clk
0:05:53.3]} 39. Bxb5 {[%clk 0:08:40.7]} 39... Bxb5 {[%clk 0:05:52.8]} 40. Rxb5
{[%clk 0:08:42.6]} 40... a4 {[%clk 0:05:53.8]} 41. Ra5 {[%clk 0:08:42.7]} 41...
Ra1 {[%clk 0:05:51.9]} 42. Ra8 {[%clk 0:08:42.6]} 42... a3 {[%clk 0:05:48.1]}
43. Kg2 {[%clk 0:08:42.2]} 43... a2 {[%clk 0:04:49.5]} 44. Kh2 {[%clk
0:08:40.6]} 44... Rd1 {[%clk 0:04:35.8]} 45. Rxa2 {[%clk 0:08:39.2]} 45... Rxd5
{[%clk 0:04:36.9]} 46. Ra8 {[%clk 0:08:39.2]} 46... Rd2+ {[%clk 0:03:36.5]} 47.
Kg3 {[%clk 0:08:38.1]} 47... Rd1 {[%clk 0:03:37.8]} 48. Kf3 {[%clk 0:08:35.3]}
48... Rh1 {[%clk 0:03:37.9]} 49. Kg2 {[%clk 0:08:32.9]} 49... Rh7 {[%clk
0:03:38]} 50. Rd8 {[%clk 0:08:27.3]} 50... Rg7 {[%clk 0:03:38.6]} 51. Ra8 {[%clk
0:08:20.4]} 51... Rg8 {[%clk 0:03:39.2]} 52. Ra7 {[%clk 0:08:21]} 52... Rc8
{[%clk 0:03:40.1]} 53. Kf3 {[%clk 0:08:19.6]} 53... Ke8 {[%clk 0:03:40.4]} 54.
Ke4 {[%clk 0:08:19.5]} 54... Rc5 {[%clk 0:03:30.2]} 55. Ra8+ {[%clk 0:08:12.5]}
55... Kd7 {[%clk 0:03:30.4]} 56. Ra7+ {[%clk 0:08:13.3]} 56... Rc7 {[%clk
0:03:30.9]} 57. Ra8 {[%clk 0:08:12.5]} 57... Rc4+ {[%clk 0:03:29.8]} 58. Kf3
{[%clk 0:08:04.8]} 58... Rc3+ {[%clk 0:03:21.6]} 59. Kf2 {[%clk 0:07:46.4]}
59... d5 {[%clk 0:03:18.1]} 60. Ra6 {[%clk 0:07:43.1]} 60... Rc6 {[%clk
0:03:17.8]} 61. Ra7+ {[%clk 0:07:42.4]} 61... Kd6 {[%clk 0:03:18.4]} 62. Ke3
{[%clk 0:07:43.3]} 62... Rc3+ {[%clk 0:03:14.7]} 63. Kf2 {[%clk 0:07:40.6]}
63... Rc7 {[%clk 0:03:12.3]} 64. Ra6+ {[%clk 0:07:39.7]} 64... Ke5 {[%clk
0:03:13.1]} 65. Ke3 {[%clk 0:07:37.8]} 65... d4+ {[%clk 0:03:08.2]} 66. Kd3
{[%clk 0:07:36.2]} 66... Kf4 {[%clk 0:03:05]} 67. Kxd4 {[%clk 0:07:35.9]} 67...
Kxg4 {[%clk 0:03:06]} 68. Ke4 {[%clk 0:07:36.7]} 68... Rc4+ {[%clk 0:03:02.6]}
69. Kd3 {[%clk 0:07:37.4]} 69... Rc5 {[%clk 0:03:01.6]} 70. Re6 {[%clk
0:07:34.1]} 70... Kxf5 {[%clk 0:02:46.9]} 71. Rxe7 {[%clk 0:07:34.3]} 71... Re5
{[%clk 0:02:48]} 72. Rh7 {[%clk 0:07:34.2]} 72... g4 {[%clk 0:02:49.3]} 73. Rg7
{[%clk 0:07:33.4]} 73... Kf4 {[%clk 0:02:50.3]} 74. Kd4 {[%clk 0:07:34.7]} 74...
Re1 {[%clk 0:02:49.2]} 0-1

[Event "GrandPrix_30.05"]
[Site "Chess.com"]
[Date "2020.05.30"]
[Round "8"]
[White "PresidenteMNE"]
[Black "madamDD"]
[Result "1-0"]
[WhiteElo "2153"]
[BlackElo "2208"]
[TimeControl "600+2"]
[EndTime "11:52:14 PDT"]
[Termination "PresidenteMNE won by checkmate"]

1. d4 {[%clk 0:09:53.9]} 1... Nf6 {[%clk 0:09:59.9]} 2. Bg5 {[%clk 0:09:54.3]}
2... d5 {[%clk 0:09:58.8]} 3. Bxf6 {[%clk 0:09:54.2]} 3... gxf6 {[%clk
0:09:58.7]} 4. e3 {[%clk 0:09:56.1]} 4... e6 {[%clk 0:09:32.3]} 5. c4 {[%clk
0:09:54.6]} 5... dxc4 {[%clk 0:08:44.1]} 6. Bxc4 {[%clk 0:09:53.1]} 6... Bd7
{[%clk 0:08:31.4]} 7. Qh5 {[%clk 0:09:49.8]} 7... Qe7 {[%clk 0:08:24.2]} 8. Nc3
{[%clk 0:09:50.2]} 8... Bc6 {[%clk 0:08:23]} 9. Nf3 {[%clk 0:09:47.2]} 9... Nd7
{[%clk 0:08:17]} 10. Bxe6 {[%clk 0:09:38.5]} 10... Qxe6 {[%clk 0:08:02.3]} 11.
d5 {[%clk 0:09:39.4]} 11... Bxd5 {[%clk 0:07:59.3]} 12. Nxd5 {[%clk 0:09:32.7]}
12... Bd6 {[%clk 0:07:57.3]} 13. O-O {[%clk 0:09:26.2]} 13... O-O-O {[%clk
0:07:52.1]} 14. Rac1 {[%clk 0:09:19.4]} 14... Kb8 {[%clk 0:07:52.1]} 15. Nd4
{[%clk 0:08:30.8]} 15... Qe4 {[%clk 0:07:40.1]} 16. Rc4 {[%clk 0:08:02.9]} 16...
Qd3 {[%clk 0:07:15.7]} 17. Rfc1 {[%clk 0:07:58.3]} 17... Ne5 {[%clk 0:07:07.8]}
18. R4c3 {[%clk 0:07:44.1]} 18... Qd2 {[%clk 0:06:59.7]} 19. R3c2 {[%clk
0:07:39.1]} 19... Qa5 {[%clk 0:06:50.5]} 20. Nxf6 {[%clk 0:07:08.8]} 20... Qxa2
{[%clk 0:06:46.9]} 21. b3 {[%clk 0:06:39.6]} 21... Qa6 {[%clk 0:06:41.7]} 22.
Qf5 {[%clk 0:06:26.7]} 22... Nd3 {[%clk 0:06:24.8]} 23. Rd1 {[%clk 0:06:22.3]}
23... Nb4 {[%clk 0:06:24]} 24. Rcc1 {[%clk 0:06:18.4]} 24... c5 {[%clk
0:06:14.3]} 25. Nf3 {[%clk 0:06:06]} 25... Ka8 {[%clk 0:05:16.8]} 26. Ra1 {[%clk
0:06:00.9]} 26... Qe2 {[%clk 0:05:07.6]} 27. Rd2 {[%clk 0:05:53.7]} 27... Qb5
{[%clk 0:05:07.3]} 28. g3 {[%clk 0:05:46]} 28... Qc6 {[%clk 0:04:59.5]} 29. Ne4
{[%clk 0:05:39.2]} 29... Be7 {[%clk 0:04:39.5]} 30. Ne5 {[%clk 0:05:33.6]} 30...
Qb5 {[%clk 0:04:32.7]} 31. Rxd8+ {[%clk 0:05:23.9]} 31... Rxd8 {[%clk
0:04:32.5]} 32. Nxf7 {[%clk 0:05:20.5]} 32... Rf8 {[%clk 0:04:32.7]} 33. Qe6
{[%clk 0:05:04.6]} 33... Nc6 {[%clk 0:04:27.5]} 34. Nfd6 {[%clk 0:04:45.3]}
34... Qd3 {[%clk 0:04:05.2]} 35. Nc8 {[%clk 0:04:23.5]} 35... Bd8 {[%clk
0:03:53.6]} 36. Nxa7 {[%clk 0:03:49.1]} 36... Na5 {[%clk 0:03:51.9]} 37. Nxc5
{[%clk 0:03:40]} 37... Qc3 {[%clk 0:03:44.7]} 38. Qc8+ {[%clk 0:03:38.1]} 38...
Kxa7 {[%clk 0:03:45.2]} 39. Qxb7# {[%clk 0:03:38.4]} 1-0

[Event "GrandPrix_30.05"]
[Site "Chess.com"]
[Date "2020.05.30"]
[Round "8"]
[White "VMikhalevski"]
[Black "Lukianoo"]
[Result "1-0"]
[WhiteElo "2720"]
[BlackElo "2574"]
[TimeControl "600+2"]
[EndTime "11:53:03 PDT"]
[Termination "VMikhalevski won by resignation"]

1. d4 {[%clk 0:10:01.9]} 1... Nf6 {[%clk 0:09:59.6]} 2. Nf3 {[%clk 0:10:01.8]}
2... e6 {[%clk 0:10:00.3]} 3. c4 {[%clk 0:10:01]} 3... Bb4+ {[%clk 0:10:00.3]}
4. Bd2 {[%clk 0:09:59.2]} 4... c5 {[%clk 0:10:00.8]} 5. Bxb4 {[%clk 0:09:55.6]}
5... cxb4 {[%clk 0:10:02.7]} 6. g3 {[%clk 0:09:55.8]} 6... O-O {[%clk
0:10:02.5]} 7. Bg2 {[%clk 0:09:56.4]} 7... d6 {[%clk 0:09:55.5]} 8. O-O {[%clk
0:09:55.4]} 8... Nc6 {[%clk 0:09:52.9]} 9. a3 {[%clk 0:09:55.7]} 9... Bd7 {[%clk
0:09:31.9]} 10. axb4 {[%clk 0:09:41.2]} 10... Nxb4 {[%clk 0:09:32]} 11. Nc3
{[%clk 0:09:41.7]} 11... a5 {[%clk 0:09:26.9]} 12. e4 {[%clk 0:09:35.5]} 12...
Qc7 {[%clk 0:08:42.3]} 13. e5 {[%clk 0:09:28.1]} 13... dxe5 {[%clk 0:08:42.6]}
14. Nxe5 {[%clk 0:09:28.8]} 14... Rfd8 {[%clk 0:08:35.1]} 15. Qe2 {[%clk
0:08:55]} 15... Be8 {[%clk 0:08:34.4]} 16. Rfd1 {[%clk 0:08:52.8]} 16... Qb6
{[%clk 0:07:31.5]} 17. c5 {[%clk 0:08:29.6]} 17... Qc7 {[%clk 0:07:32.1]} 18.
Nb5 {[%clk 0:08:01.2]} 18... Bxb5 {[%clk 0:07:31.3]} 19. Qxb5 {[%clk 0:08:01.9]}
19... Nfd5 {[%clk 0:07:02.8]} 20. Nc4 {[%clk 0:07:50.4]} 20... Nc6 {[%clk
0:06:21]} 21. Bxd5 {[%clk 0:07:24.4]} 21... Rxd5 {[%clk 0:06:15.7]} 22. Nb6
{[%clk 0:07:24.4]} 22... Rad8 {[%clk 0:06:16.6]} 23. Nxd5 {[%clk 0:07:22.1]}
23... Rxd5 {[%clk 0:06:18.2]} 24. b4 {[%clk 0:06:56.5]} 24... h5 {[%clk
0:06:04.5]} 25. bxa5 {[%clk 0:06:48.9]} 25... Nxd4 {[%clk 0:06:03.7]} 26. Qb6
{[%clk 0:06:25.9]} 26... Qe5 {[%clk 0:05:59]} 27. c6 {[%clk 0:04:53.2]} 27...
Nf3+ {[%clk 0:03:16.7]} 28. Kh1 {[%clk 0:04:40.3]} 28... Rd4 {[%clk 0:02:13.6]}
29. cxb7 {[%clk 0:04:27.2]} 29... Rh4 {[%clk 0:01:46.5]} 30. b8=Q+ {[%clk
0:04:27.4]} 30... Kh7 {[%clk 0:01:46.8]} 31. gxh4 {[%clk 0:04:26.9]} 1-0